{"text_format":"3","workbook":"xlsx","n_sheets":2,"sheets":["PRICING SCHEDULE","Sheet1"],"not_rendered":{"images":1,"defined_names":3},"read":"whole","date_system":"1900"}

{"sheet":"PRICING SCHEDULE","index":0,"n_rows":33,"n_cols":8,"rows_kept":33,"merged":[[13,3,13,5],[29,1,32,1],[29,2,29,3],[29,4,29,5],[30,2,30,3],[30,4,30,5],[31,2,31,3],[31,4,31,5],[32,2,32,3],[32,4,32,5]]}
[null,"          SUPPLY CHAIN MANAGEMENT"]
[null,"              Pricing schedule"]
["RFx No","RFB 05 2025"]
["RFx Title","APPOINTMENT OF SERVICE PROVIDER FOR PROCUREMENT OF THE CONSTITUTION BOOKLETS."]
["Bidder Name "]
[]
["1. INSTRUCTION FOR COMPLETING THE PRICING SCHEDULE"]
["(a)  THIS PRICING SCHEDULE MUST BE SUBMITTED SEPARATELY FROM THE TECHNICAL RESPONSE, failing which the BID may be DISQUALIFIED."]
["(b)  Bidder must complete/enter YELLOW cells only"]
["(c)  Unit and Line prices must be VAT EXCLUSIVE and in South African Rand (ZAR) currency."]
["(d) The price must include all cost to deliver the goods or render the service, including all applicable taxes, duty fees, logistics/delivery, storage, labour, overtime and subsistance and travel"]
["(e) Bidders must attached a separate bill of quantities linked to the statement of work totaling to their bid price in the letterhead of the bidder"]
[]
[{"$nulls":6},"TOTAL"]
["Item No","Goods/Service description","Site Name","Qty ","Unit Price \n(Excl VAT)","Line Price","Line Price Term \n(Excl VAT)","Price clarification comment"]
[1,"SUPPLY AND DELIVER OF BOOKLETS"]
["1.1","Standard Constitution booklets"]
["1.1.1","Standard Constitution booklets: English","DOJ",{"v":110000,"d":"110,000"},null,{"$f":"D18*E18","v":{"v":0,"d":"R0.00"}},{"$f":"SUM(F18)","v":{"v":0,"d":"R0.00"}}]
["1.1.2","Standard Constitution booklets: Afrikaans  ","DOJ",500,null,{"$f":"D19*E19","v":{"v":0,"d":"R0.00"}},{"$f":"SUM(F19)","v":{"v":0,"d":"R0.00"}}]
["1.1.3","Standard Constitution booklets : Sepedi","DOJ",500,null,{"v":0,"d":"R0.00"},{"v":0,"d":"R0.00"}]
["1.1.4","Standard Constitution booklets : IsiZulu","DOJ",500,null,{"v":0,"d":"R0.00"},{"v":0,"d":"R0.00"}]
["1.2","Slimline Constitution booklets","DOJ",{"v":300000,"d":"300,000"},null,{"$f":"D22*E22","v":{"v":0,"d":"R0.00"}},{"v":0,"d":"R0.00"}]
["1.3","Leather-bound Constitution booklets","DOJ",{"v":10000,"d":"10,000"},null,{"v":0,"d":"R0.00"},{"$f":"SUM(F23)","v":{"v":0,"d":"R0.00"}}]
["1.4","Delivery","Each",1,null,{"$f":"D24*E24","v":{"v":0,"d":"R0.00"}},{"$f":"SUM(F24)","v":{"v":0,"d":"R0.00"}}]
[null,"TOTAL BID PRICE  (EXCL VAT)",{"$nulls":3},{"$f":"SUBTOTAL(9,F16:F24)","v":{"v":0,"d":"R0.00"}},{"$f":"SUBTOTAL(9,G16:G24)","v":{"v":0,"d":"R0.00"}}]
[null,"VAT (@15%)",{"$nulls":3},{"$f":"F25*0.15","v":{"v":0,"d":"R0.00"}},{"$f":"G25*0.15","v":{"v":0,"d":"R0.00"}}]
[null,"TOTAL  BID PRICE (INCL VAT)",{"$nulls":3},{"$f":"F25+F26","v":{"v":0,"d":"R0.00"}},{"$f":"G25+G26","v":{"v":0,"d":"R0.00"}}]
[]
[]
[null,"I, the bidder, confirm that the price(s) and rate(s) quoted cover all the goods and/or works specified in the bidding documents; that the price(s) or rate(s) cover all my obligations and I accept that any mistakes regarding price(s), rate(s) or calculations will be at my own risk.\n[Note: First convert to PDF, then add signature]"]
[null,null,"Name (above)",null,"Capacity"]
[{"$nulls":7}," "]
[null,null,"Signature (above)",null,"Date"]

{"sheet":"Sheet1","index":1,"n_rows":0,"n_cols":0,"rows_kept":0}